Cogmind - Beta 14 @@@ ROGUE MODE // 2024.09.06 @ 04:46:59 Player: Wyvric Result: Destroyed by G-73 Enforcer with Phase Gun Performance ------------- Evolutions (5) 2500 Regions Visited (23) 4600 Robots Destroyed (317) 1585 Value Destroyed (11556) 11556 Prototype IDs (32) 640 Alien Tech Used (0) 0 Bonus (2746) 2746 TOTAL SCORE: 23627 Bonus ------- High Alert Combat Kills 725 Follower Combat Kills 1286 Network Hubs Disabled 800 Destroyed Z-Imprinter 1000 MAIN.C Attacked Warlord 500 Warlord Defense Kills 668 Built Enhanced Grunts 300 A7 Reached Mainframe 300 Met R17 at Cetus 500 Friendly Fire -3333 Cogmind --------- Core Integrity 0/1000 Matter 8/300 Energy 82/100 System Corruption 7% Temperature Cool (9) Movement Core (50) Location -4/Proximity Caves Parts ------- > --- POWER (2) -------- (None) > --- PROPULSION (6) --- (None) > --- UTILITY (6) ------ Scrap Engine Advanced Hacking Suite > --- WEAPON (3) ------- (None) > --- INVENTORY (5) ---- Huge Storage Unit Zionite Biocell (9) Zionite Metafield Generator Phasing AFG Mini Smartbomb Launcher Peak State ------------ > --- POWER ------------ Angular Momentum Engine Multi-Fission Core > --- PROPULSION ------- FC-Armored Exoskeleton Improved Gravmag System > --- UTILITY ---------- Armored Scrap Engine Huge Storage Unit Experimental Propulsion Shielding Centrium Medium Armor Plating Medium Regenerative Plating > --- WEAPON ----------- Proton Cannon Proton Cannon Enhanced Gauss Cannon > --- INVENTORY -------- Armored Leg Enhanced Flexi-carbon Leg Improved Surge Thruster Advanced Heat Sink Advanced Cooling System Improved Coolant Injector Cargo Storage Unit Zionite Biocell Matter Compressor Gravity Neutralizer Zionite Metafield Generator Improved Sensor Array Improved Signal Interpreter Experimental Propulsion Shielding Experimental Propulsion Shielding Zionite Weapon Casing Centrium Medium Armor Plating Centrium Medium Armor Plating EM Disruption Field Advanced Hacking Suite Advanced System Shield Phasing AFG Rocket Array [Rating: 119] Favorites ----------- Power Constructs Engine Improved Ion Engine Power Core Constructs Reactor Quantum Reactor Propulsion Constructs Treads Improved Treads Leg Constructs Wheel Wheel Hover Unit Improved Gravmag System Flight Unit Cooled VTOL Module Utility Armored Scrap Engine Device Armored Scrap Engine Storage Huge Storage Unit Processor Improved Signal Interpreter Hackware Hacking Suite Protection Hardened Medium Armor Plating Weapon Constructs Energy Gun Improved EM Shotgun Energy Cannon Proton Cannon Ballistic Gun Constructs Ballistic Cannon Enhanced Gauss Cannon Launcher Mini Smartbomb Launcher Special Weapon Plasma Cutter Impact Weapon Powered Hammer Slashing Weapon Plasma Sword Build | -11 -10 -10 -9 -9 -9 -7 -7 -7 -7 -7 -6 -6 -6 -6 -6 -6 -6 -6 -5 -5 -5 -5 -4 ------- Run | Yrd Mat Min Mat Sto Rec Fac Low Low Zio Dee Pro Fac Was Fac Ext Cet Arc Hub Fac Upp Upp War Pro Slots Evolved 10 | . . . 2 . . 4 . . . . . 2 . . . . . . 2 . . . . Power 1 | . . . . . . . . . . . . . . . . . . . 1 . . . . Propulsion 4 | . . . . . . 2 . . . . . 2 . . . . . . . . . . . Utility 4 | . . . 2 . . 1 . . . . . . . . . . . . 1 . . . . Weapon 1 | . . . . . . 1 . . . . . . . . . . . . . . . . . Parts Attached 426 | 7 14 3 38 4 9 38 25 12 37 46 7 16 3 21 13 7 11 8 46 13 18 17 13 Power 8 | 1 1 1 3 . . . . . . . . . . . . . . . 2 . . . . Engine 5 | 1 1 . 2 . . . . . . . . . . . . . . . 1 . . . . Core 2 | . . 1 1 . . . . . . . . . . . . . . . . . . . . Reactor 1 | . . . . . . . . . . . . . . . . . . . 1 . . . . Propulsion 25 | 2 7 . 5 . . 2 . . . . . 4 . . . . . . 3 1 1 . . Treads 12 | . 7 . 5 . . . . . . . . . . . . . . . . . . . . Leg 5 | 2 . . . . . 2 . . . . . 1 . . . . . . . . . . . Wheel 2 | . . . . . . . . . . . . . . . . . . . 1 1 . . . Hover 2 | . . . . . . . . . . . . . . . . . . . 2 . . . . Flight 4 | . . . . . . . . . . . . 3 . . . . . . . . 1 . . Utility 290 | 2 5 1 20 3 6 26 21 11 29 37 6 7 2 17 8 6 10 6 20 11 15 12 9 Device 151 | 1 . . 10 3 4 18 14 8 19 17 4 . 2 8 4 . 4 2 6 8 9 5 5 Storage 23 | 1 2 . 1 . . 4 . . 2 4 1 3 . . 1 1 1 . 1 . . 1 . Processor 6 | . . . 1 . . 1 . . . . . 1 . 1 1 . . . . 1 . . . Hackware 8 | . . . . . . 1 . . . . . 1 . 2 . . . 2 1 . . . 1 Protection 102 | . 3 1 8 . 2 2 7 3 8 16 1 2 . 6 2 5 5 2 12 2 6 6 3 Artifact . | . . . . . . . . . . . . . . . . . . . . . . . . Weapon 103 | 2 1 1 10 1 3 10 4 1 8 9 1 5 1 4 5 1 1 2 21 1 2 5 4 Energy Gun 14 | . . . 2 1 1 1 . . 1 4 . 2 . . 1 . . . 1 . . . . Energy Cannon 27 | . . 1 6 . . 1 . . . . . 2 . 2 3 . . . 9 . 1 . 2 Ballistic Gun 12 | 2 1 . . . . 2 1 . 1 3 . . . . . 1 1 . . . . . . Ballistic Cannon 3 | . . . . . . . . . . . . . . . . . . 1 2 . . . . Launcher 27 | . . . 2 . 2 2 2 . . 2 1 1 1 2 1 . . 1 7 . . 2 1 Special Weapon 2 | . . . . . . . . . 2 . . . . . . . . . . . . . . Impact Weapon 13 | . . . . . . 3 1 1 4 . . . . . . . . . . . . 3 1 Slashing Weapon 5 | . . . . . . 1 . . . . . . . . . . . . 2 1 1 . . Piercing Weapon . | . . . . . . . . . . . . . . . . . . . . . . . . Special Melee Weapon . | . . . . . . . . . . . . . . . . . . . . . . . . Unidentified Prototypes 22 | . . . . . 1 . . . 1 9 . 1 1 . . 4 1 . 3 . 1 . . Corrupted Parts 1 | . . . . . . . . . . . . . . . . . 1 . . . . . . System Corruption 1 | . . . . . . . . . . . . . . . . . 1 . . . . . . Parts Lost 48 | . 1 2 8 . 1 . . . 1 4 2 . 1 3 . . . 5 3 . 2 8 7 Power 6 | . 1 . 2 . . . . . . . . . . . . . . 1 . . . 2 . Propulsion 9 | . . . 2 . . . . . . . . . . . . . . . 1 . 1 2 3 Utility 16 | . . 1 3 . . . . . 1 3 1 . . 2 . . . 1 1 . . . 3 Weapon 17 | . . 1 1 . 1 . . . . 1 1 . 1 1 . . . 3 1 . 1 4 1 Highest Loss Streak 5 | . 1 1 4 . 1 . . . 1 3 1 . 1 1 . . . 5 1 . 1 5 4 To Critical Strikes . | . . . . . . . . . . . . . . . . . . . . . . . . Average Slot Usage (%) 64 | . 99 100 99 100 78 61 61 61 58 56 57 59 53 52 49 46 49 48 51 56 49 51 50 Engine 3 | . 13 1 6 11 10 5 . . . 4 7 6 6 6 6 6 1 . . . . . . Core 3 | . . 12 4 . . 1 7 7 6 2 . . . . . . . . 2 5 2 4 . Treads 6 | . 26 28 22 22 11 . . 5 3 . . . 5 4 . . . . . . . . . Leg 2 | . . . . . 3 3 . . 1 6 . 9 . . 6 6 5 6 1 5 5 5 4 Device 11 | . 1 . 11 11 13 13 12 13 12 13 19 6 12 11 15 6 12 7 7 10 9 10 10 Storage 7 | . 14 14 11 11 11 7 7 7 7 7 9 6 6 6 6 6 6 6 5 5 5 5 4 Processor 2 | . . . 2 . . 4 7 7 . . . 5 6 . . . . . . 5 5 5 4 Protection 6 | . 12 14 18 22 12 1 1 . 6 5 . 4 . 5 2 5 4 1 10 . . . 5 Energy Gun 2 | . . . 6 22 8 . . . . 2 3 . 3 2 . . . . 3 . . . . Energy Cannon 4 | . . 12 14 . . . 3 7 3 2 4 10 6 6 7 6 1 . 4 . 3 4 2 Ballistic Gun 2 | . 28 15 . . 1 2 . 1 1 2 . . . . . 5 5 1 . 4 1 . . Ballistic Cannon 1 | . . . . . 3 7 3 . 3 4 2 1 . 3 . . 4 7 . . . . . Launcher 1 | . . . . . . . 2 . . 1 . . 2 . 3 . . . 1 5 5 5 4 Impact Weapon 1 | . . . . . . 2 4 5 4 . . . . . . . . . . . . . 7 Peak Build Rating 119 | 7 13 15 27 30 44 62 65 67 73 91 96 101 99 99 94 103 112 112 119 101 96 99 76 Average Rating 66 | 5 10 14 20 28 36 57 63 65 64 74 87 89 91 92 89 99 107 102 103 95 87 94 69 On Entrance 66 | . 7 13 15 26 30 44 61 63 66 67 91 85 88 99 92 92 102 112 84 103 92 95 77 Naked Turns . | . . . . . . . . . . . . . . . . . . . . . . . . Heaviest Build 192 | 15 90 93 111 115 117 112 126 122 124 122 77 115 105 114 170 173 173 118 188 172 185 192 110 Greatest Support 238 | 20 46 46 46 46 46 60 60 60 110 110 98 164 196 217 217 217 238 238 238 116 116 63 37 Greatest Overweight (x) 9 | . 1 2 2 2 9 3 2 2 2 1 . 1 . . . 1 1 . 1 1 2 3 9 Average Overweight (x) 1 | . . 1 1 2 3 . 1 1 . . . . . . . . . . . 1 1 2 3 Largest Inventory Capacity 30 | 8 25 25 25 25 25 25 25 25 25 25 20 25 25 25 30 30 30 25 30 30 30 30 25 Average Capacity 25 | 6 12 25 25 25 25 22 25 25 23 21 20 23 25 25 26 30 26 25 27 30 30 29 24 Most Carried 30 | 8 25 25 25 25 25 25 25 25 25 25 20 25 25 25 30 30 30 25 30 30 30 28 25 Average Carried 24 | 5 10 24 24 24 23 21 24 24 22 20 19 22 24 24 25 28 26 24 26 29 29 27 23 Final Capacity 30 | 8 25 25 25 25 25 25 25 25 25 20 20 25 25 25 30 30 30 25 30 30 30 25 5 Final Carried 30 | 7 25 24 24 25 25 24 25 25 25 20 18 25 24 25 30 30 30 22 29 30 28 23 5 Scrap Engine Consumption 326 | . . . . . 39 49 26 9 43 21 3 20 5 19 19 14 4 8 26 3 14 1 3 Constructs Created 8 | . . . . . 3 1 . . . . . . 1 . . . 1 . 2 . . . . Constructs Modified 126 | . . . . . 8 13 11 2 18 15 1 12 2 11 3 1 7 2 10 4 6 . . Class Distribution -------------------- 39% | Construct 22% | Hauler-Construct 19% | Mutant 5% | Trapper-Construct 5% | Commander-Construct 3% | Commander-Mutant Dominant Class ---------------- Mutant | -10/Materials Mutant | -10/Mines Mutant | -9/Materials Mutant | -9/Storage Construct | -9/Recycling Construct | -7/Factory Construct | -7/Lower Caves Construct | -7/Lower Caves Construct | -7/Zion Construct | -7/Deep Caves Construct | -6/Proximity Caves Construct | -6/Factory Construct | -6/Waste Construct | -6/Factory Construct | -6/Extension Commander-Construct | -6/Cetus Commander-Construct | -6/Archives Hacker-Construct | -6/Hub_04(d) Hauler-Construct | -5/Factory Hauler-Construct | -5/Upper Caves Hauler-Construct | -5/Upper Caves Hauler-Construct | -5/Warlord Mutant | -4/Proximity Caves Resources | -11 -10 -10 -9 -9 -9 -7 -7 -7 -7 -7 -6 -6 -6 -6 -6 -6 -6 -6 -5 -5 -5 -5 -4 ----------- Run | Yrd Mat Min Mat Sto Rec Fac Low Low Zio Dee Pro Fac Was Fac Ext Cet Arc Hub Fac Upp Upp War Pro Matter Collected 11766 | 302 381 250 405 40 374 566 395 108 1456 344 131 376 . 1094 772 571 578 68 1253 542 908 418 434 Remotely 401 | . . . . . . . . . . . . . . . . . . . . 195 . 147 59 Salvage Created 14566 | 127 646 271 1591 90 582 1109 1386 93 2354 500 45 428 . 1383 1059 403 254 18 1177 235 452 112 251 Parts 789 | 13 37 5 118 4 25 77 55 8 178 28 7 13 . 50 37 21 13 1 55 9 24 5 6 Haulers Intercepted 6 | . 2 . 2 . . . . . . . . . . . . . . . 2 . . . . Recyclers Shooed 15 | 1 1 . . . 1 1 . . . . . 1 . 5 3 . . 1 1 . . . . Parts Field Recycled 51 | . . . . . . 10 8 2 15 16 . . . . . . . . . . . . . Retrieved Matter 457 | . . . . . . 101 81 13 178 84 . . . . . . . . . . . . . Parts Self-Destructed 80 | . . . . . . . 34 9 1 . 7 . . . . . . . . 12 10 . 7 Prevented 9 | . . . . . . . 3 3 . . . . . . . . . . . . 3 . . Kills | -11 -10 -10 -9 -9 -9 -7 -7 -7 -7 -7 -6 -6 -6 -6 -6 -6 -6 -6 -5 -5 -5 -5 -4 ------- Run | Yrd Mat Min Mat Sto Rec Fac Low Low Zio Dee Pro Fac Was Fac Ext Cet Arc Hub Fac Upp Upp War Pro Combat Hostiles Destroyed 221 | . 15 4 31 2 4 17 21 2 8 9 4 5 . 25 9 5 . . 23 5 16 6 10 Melee 4 | . . . . . . . . . . . . . . 1 . . . . . 1 . 1 1 Guns 30 | . 15 1 6 1 2 . . . . 1 . . . 2 . . . . 1 . 1 . . Cannons 97 | . . 3 19 . 1 10 16 2 5 2 . 5 . 16 9 5 . . 2 . . . 2 AOE 78 | . . . 5 1 1 7 3 . . 6 4 . . 6 . . . . 17 4 13 5 6 Classes Destroyed 27 | 2 6 . 3 . 2 2 3 1 3 1 . . . 1 . . . . 1 . . 1 1 Worker 10 | . 1 . 1 . . 3 . . . . . . . . . . . 1 4 . . . . Builder 15 | . 1 . 4 . 1 5 . . . . . . . . . . . . 4 . . . . Tunneler 9 | 3 . . 1 . . 3 . . . . . . . . . . . . 2 . . . . Hauler 7 | . 2 . 2 . 1 . . . . . . . . . . . . . 2 . . . . Recycler 12 | 1 . 1 2 . 1 1 . . . . . 1 . 2 3 . . . . . . . . Mechanic 1 | . . . . . . . . . . . . . . . . . . . 1 . . . . Operator 11 | . . . 1 . . 1 . . . . . . . 2 . . 6 . 1 . . . . Drone 1 | . . . . . . . . . . . . . . . . . . . . . . . 1 Watcher 7 | . 1 . 4 . . 1 . . . . . . . . 1 . . . . . . . . Swarmer 52 | . 6 . 11 . . 7 8 . . . 4 . . . . . . . 5 . 5 3 3 Grunt 77 | . 9 4 11 2 1 2 6 . . . . 2 . 13 4 . . . 7 5 8 . 3 Brawler 5 | . . . . . . . 1 . . . . . . 2 . . . . 2 . . . . Duelist 8 | . . . 1 . . 1 2 . . . . 1 . 1 . . . . 1 . . . 1 Protector 1 | . . . . . . . . . . . . . . 1 . . . . . . . . . Sentry 27 | . . . 8 . 1 3 2 . . . . 2 . 5 2 . . . 2 . 1 . 1 Hunter 8 | . . . . . . 1 1 . . . . . . . . . . . 2 . 2 2 . Programmer 14 | . . . . . . 3 . 1 . . . . . 3 2 . . . 4 . . . 1 Behemoth 1 | . . . . . . . . . . . . . . . 1 . . . . . . . . Cetus Guard 5 | . . . . . . . . . . . . . . . . 5 . . . . . . . Striker 1 | . . . . . . . . . . . . . . . . . . . . . . 1 . Scientist 1 | . . . . . 1 . . . . . . . . . . . . . . . . . . Scrapper 3 | . . . . . 3 . . . . . . . . . . . . . . . . . . Zionite 101 | . . . . . . . . . 101 . . . . . . . . . . . . . . Z-Light 8 | . . . . . . . . . . 8 . . . . . . . . . . . . . Decomposer 3 | . . . . . . . 1 . . . . . . . . . . . . 2 . . . Samaritan 4 | . . . . . . . 3 . . . . . . . . . . . . 1 . . . Tinkerer 6 | . . . . . . . . . 6 . . . . . . . . . . . . . . Thief 1 | . . . . . . . 1 . . . . . . . . . . . . . . . . Thug 2 | . . . . . . . . . . . . . . . 1 . 1 . . . . . . Butcher 1 | . . . . . . . . . 1 . . . . . . . . . . . . . . Marauder 2 | . . . . . . . . . 2 . . . . . . . . . . . . . . Mutant 6 | . . . . . . . . 1 5 . . . . . . . . . . . . . . Best Kill Streak 14 | 4 4 2 4 2 3 4 5 1 14 5 4 3 . 6 4 3 2 1 7 5 5 5 4 Combat Bots Only 6 | . 2 2 4 2 2 4 5 1 2 5 4 3 . 6 3 3 . . 5 5 5 5 4 Max Kills in Single Turn 5 | 1 1 1 2 1 4 3 2 1 1 2 4 1 . 2 1 1 1 1 5 2 2 2 2 Gunslinging . | . . . . . . . . . . . . . . . . . . . . . . . . Exploded 4 | . . . 1 1 1 3 1 . . 2 4 . . 2 . . . . 3 2 2 2 2 Melee 1 | . . . . . . . . . . . . . . 1 . . . . . 1 . 1 1 Uniques/NPCs Destroyed 2 | . . . . . . . . . . 1 . . . . . 1 . . . . . . . Z-Imprinter (-7/Deep Caves) A7 (-6/Cetus) Combat | -11 -10 -10 -9 -9 -9 -7 -7 -7 -7 -7 -6 -6 -6 -6 -6 -6 -6 -6 -5 -5 -5 -5 -4 -------- Run | Yrd Mat Min Mat Sto Rec Fac Low Low Zio Dee Pro Fac Was Fac Ext Cet Arc Hub Fac Upp Upp War Pro Hostile Shots Fired 2342 | . 96 29 192 19 24 119 77 4 271 86 64 41 5 369 86 31 5 271 210 10 72 148 113 Missed 821 | . 27 10 47 6 3 36 30 2 111 30 32 13 3 144 25 14 . 110 65 3 27 51 32 Damage Taken 25153 | . 759 255 1815 156 476 944 723 111 2173 1671 622 520 75 2831 728 355 116 2918 2621 131 832 2822 1499 Core 2676 | . 99 15 283 37 35 82 61 67 222 209 31 . . 156 89 29 . 245 144 . 92 430 350 Absorbed by Shields 969 | . . . 66 9 . 211 . . 437 104 . . . . 53 89 . . . . . . . Redirected to Shielding 188 | . . . . . . . . . . . . . . . . . . . 188 . . . . Ignored by Resistances 596 | . . . . . . . . . . . . . . 66 4 . . 469 38 . . . 19 Regen/Repaired (Parts) 8945 | . 261 . . . 115 360 581 172 1178 1046 . 668 39 1186 204 556 377 58 1320 73 457 12 282 Core Remaining (%) 41 | 100 . 54 . . 11 . . . . . 4 . . . . . . 38 . . . . . Volleys Fired 1178 | 7 68 19 95 4 59 75 64 3 261 70 7 39 11 99 78 33 39 10 52 5 36 12 32 Largest 3 | 2 2 2 2 2 2 1 1 1 2 2 2 1 1 2 1 1 1 2 3 1 1 1 1 Hottest 271 | 40 40 80 120 90 90 88 88 85 97 92 110 90 159 271 186 114 114 113 160 80 80 80 80 Shots Fired 1457 | 14 136 33 186 8 67 75 64 3 287 89 8 39 11 108 78 33 39 11 79 4 38 13 34 Gun 379 | 14 136 15 35 8 16 . . . 26 52 4 1 2 38 18 . . . 10 . 4 . . Cannon 942 | . . 18 147 . 30 73 45 3 261 27 3 38 9 65 60 33 39 10 47 . 12 1 21 Launcher 136 | . . . 4 . 21 2 19 . . 10 1 . . 5 . . . 1 22 4 22 12 13 Special . | . . . . . . . . . . . . . . . . . . . . . . . . Kinetic 531 | 14 136 15 5 . 23 73 19 . 163 42 . . . 24 . . . 7 6 . 4 . . Thermal 463 | . . 18 147 . 7 . 26 3 124 . 4 22 11 79 14 . . 3 5 . . . . Explosive 112 | . . . 4 . 21 1 . . . 6 1 . . 5 . . . 1 22 4 22 12 13 Electromagnetic 164 | . . . 30 8 16 1 19 . . 4 . . . . 6 . . . 46 . 12 1 21 Phasic 187 | . . . . . . . . . . 37 3 17 . . 58 33 39 . . . . . . Robot Hit Streak 20 | 5 17 16 16 8 9 13 20 4 13 4 2 7 6 14 9 10 12 5 17 10 16 9 10 Robot Miss Streak 9 | 4 7 3 6 1 3 9 7 2 6 6 2 3 5 4 4 2 6 3 4 . 1 . 3 Penetration Max 1 | . . . . . . . . . . 1 . . . . . . . . . . . . . Secondary Targets 1 | . . . . . 1 . . . . . . . . . . . . . . . . . . Max Gunslinging Chain 1 | . . . . . 1 . . . . . . . . . . . . . . . . . . Shots Hit Robots 954 | 7 86 22 119 7 24 49 53 3 246 28 1 20 10 64 46 30 27 7 53 7 23 7 15 Core Hits 714 | 5 32 9 65 4 18 50 57 5 138 24 6 12 3 66 21 17 11 6 84 9 28 26 18 Critical Kills 2 | . 1 . 1 . . . . . . . . . . . . . . . . . . . . Critical Parts Destroyed 3 | . 1 . . . . . . . . . . . . 1 . . . . . . . . 1 Critical Strikes 6 | . 2 . 1 . . . . . . 1 . . . 1 . . . . . . . . 1 Meltdown 1 | . . . 1 . . . . . . . . . . . . . . . . . . . . Destroy 4 | . 2 . . . . . . . . 1 . . . 1 . . . . . . . . . Smash 1 | . . . . . . . . . . . . . . . . . . . . . . . 1 Melee Attacks 34 | . . . . . . 4 . 1 1 . . . . . . . . . 9 5 2 4 8 Impact 16 | . . . . . . 4 . 1 1 . . . . . . . . . . . . 2 8 Slashing 18 | . . . . . . . . . . . . . . . . . . . 9 5 2 2 . Piercing . | . . . . . . . . . . . . . . . . . . . . . . . . Sneak Attacks 11 | . . . . . . 1 . . . . . . . . . . . . 6 4 . . . Combat Hostiles . | . . . . . . . . . . . . . . . . . . . . . . . . Follow-up Attacks 1 | . . . . . . . . . . . . . . . . . . . . . . . 1 Damage Inflicted 44612 | 116 1122 336 2622 185 1034 2592 2202 93 7271 1515 246 909 574 4643 2561 2300 1758 305 5046 1206 2397 1817 1762 Guns 3259 | 116 1122 126 430 115 181 . . . 248 119 . . 58 599 . . . . 97 . 48 . . Cannons 25207 | . . 210 1684 . 503 1678 1485 93 7023 551 46 909 516 2271 2504 2300 1758 255 871 . 240 36 274 Explosions 14608 | . . . 502 70 349 825 717 . . 845 200 . . 1631 . . . 49 3446 846 1982 1739 1407 Melee 1326 | . . . . . . 89 . . . . . . . . . . . . 627 360 127 42 81 Ramming 212 | . . . 6 . 1 . . . . . . . . 142 57 . . 1 5 . . . . Kinetic 9405 | 116 1122 126 . . 281 1678 518 . 3828 670 . . . 721 . . . 200 97 . 48 . . Thermal 11071 | . . 210 1782 70 571 371 1045 93 3443 . . 246 574 2149 310 . . 55 152 . . . . Explosive 12646 | . . . 312 . . 407 . . . 741 200 . . 1631 . . . 49 3332 846 1982 1739 1407 Electromagnetic 3229 | . . . 522 115 181 47 639 . . 104 . . . . 238 . . . 833 . 240 36 274 Impact 212 | . . . . . . 89 . . . . . . . . . . . . . . . 42 81 Slashing 1114 | . . . . . . . . . . . . . . . . . . . 627 360 127 . . Piercing . | . . . . . . . . . . . . . . . . . . . . . . . . Phasic 6723 | . . . . . . . . . . . 46 663 . . 1956 2300 1758 . . . . . . Highest Corruption 19 | . 1 1 . . . 3 . . 1 1 1 . . 3 1 . 1 19 10 5 5 7 7 Average Corruption 2 | . 1 1 . . . 1 . . 1 1 1 . . 1 1 . 1 5 8 5 2 1 7 Corruption Purged 17 | . . . . . . 3 . . . . . . . 3 1 . 1 . 5 . 4 . . Corruption Blocked . | . . . . . . . . . . . . . . . . . . . . . . . . Effects 266 | . 2 10 . . . 20 . . 19 17 3 . . 9 . . . 4 23 51 35 27 46 Message Errors 66 | . . 2 . . . 5 . . 6 3 1 . . 3 . . . 2 9 10 9 6 10 Matter Fused 61 | . 1 1 . . . 6 . . 4 3 . . . 2 . . . . 5 11 10 9 9 Heat Flow Errors 34 | . 1 1 . . . 1 . . 3 6 1 . . . . . . 1 1 10 1 2 6 Energy Discharges 37 | . . 3 . . . 4 . . 2 1 1 . . 1 . . . . 2 5 7 2 9 Parts Rejected 5 | . . . . . . 1 . . . . . . . 1 . . . 1 1 . . . 1 Parts Fused 3 | . . 1 . . . . . . . . . . . . . . . . 1 . . 1 . Data Loss (minor) 28 | . . 1 . . . 2 . . 1 3 . . . 1 . . . . 3 9 1 3 4 Data Loss (major) 15 | . . 1 . . . 1 . . 3 1 . . . 1 . . . . . 1 3 1 3 Misfires 7 | . . . . . . . . . . . . . . . . . . . 1 . 3 1 2 Alerts 8 | . . . . . . . . . . . . . . . . . . . . 4 . 2 2 Weapon Failures 2 | . . . . . . . . . . . . . . . . . . . . 1 1 . . Overload Shots . | . . . . . . . . . . . . . . . . . . . . . . . . Overflow Damage 1593 | . . . . . 17 79 92 . 147 85 . 17 . 138 146 1 157 6 160 231 80 120 117 Projectiles 702 | . . . . . 12 7 37 . 147 58 . 17 . 100 145 1 157 6 12 . . . 3 Explosions 490 | . . . . . 5 23 55 . . 27 . . . 37 . . . . 44 41 80 120 58 Melee 401 | . . . . . . 49 . . . . . . . 1 1 . . . 104 190 . . 56 Knockbacks 72 | . . . . . . 21 5 . 32 3 . . . 4 1 . . 5 1 . . . . Impact 1 | . . . . . . . . . . . . . . . 1 . . . . . . . . Kinetic 70 | . . . . . . 20 5 . 32 3 . . . 4 . . . 5 1 . . . . Secondary 1 | . . . . . . 1 . . . . . . . . . . . . . . . . . Self-Inflicted Damage 471 | . . . 119 7 26 105 15 . . . . . . 79 . . . 38 61 . . . 21 Shots 17 | . . . 4 1 1 3 1 . . . . . . 1 . . . 2 3 . . . 1 Rammed 17 | . . . . . 1 . . . . . . . . 15 . . . . 1 . . . . Targets Rammed 24 | . . . 1 . 1 . . . . . . . . 17 3 . . 1 1 . . . . Kicked 4 | . . . . . . . . . . . . . . . 3 . . 1 . . . . . Crushed 3 | . . . 1 . . . . . . . . . . 2 . . . . . . . . . Highest Temperature 402 | . 232 252 285 14 202 236 280 104 338 283 111 272 192 312 312 344 402 187 291 269 176 238 256 Average Temperature 90 | . 26 93 104 6 76 70 104 43 95 86 37 80 137 94 81 140 184 44 85 119 65 49 64 Received Heat Transfer 5133 | . 339 156 461 42 277 146 126 44 331 468 108 150 . 1048 191 18 27 375 294 91 216 99 126 Effects 8 | . . 1 . . . . . . 2 2 . . . . 1 1 . . . . . . 1 Energy Bleed 5 | . . . . . . . . . 1 2 . . . . 1 . . . . . . . 1 Interference 2 | . . 1 . . . . . . 1 . . . . . . . . . . . . . . Matter Decay 1 | . . . . . . . . . . . . . . . . 1 . . . . . . . Siege Activations . | . . . . . . . . . . . . . . . . . . . . . . . . Robots Corrupted 8 | . . . . . . . 2 . . . . . . . . . . . 3 . 2 . 1 Combat Hostiles 7 | . . . . . . . 1 . . . . . . . . . . . 3 . 2 . 1 Parts Fried 27 | . . . 2 . 1 5 9 . . 1 . . . . 2 . . . 5 . 2 . . Impact Corruptions 5 | . . . . . . 1 . . . . . . . 1 1 . . . . . . . 2 Robots Melted 6 | . . . 1 . . . 1 . 4 . . . . . . . . . . . . . . Combat Hostiles 5 | . . . 1 . . . 1 . 3 . . . . . . . . . . . . . . Parts Melted 43 | . . 6 9 . . . 5 . 17 1 . 1 . 4 . . . . . . . . . Heat Transferred 20104 | . . 444 3702 100 574 350 2616 222 8309 . . 370 740 2146 333 . . 74 124 . . . . Parts Sabotaged . | . . . . . . . . . . . . . . . . . . . . . . . . Parts Stolen . | . . . . . . . . . . . . . . . . . . . . . . . . Parts Stripped . | . . . . . . . . . . . . . . . . . . . . . . . . Power Chain Reactions 19 | . . . 3 1 4 7 2 . . . . . . . . . . . 2 . . . . Alert | -11 -10 -10 -9 -9 -9 -7 -7 -7 -7 -7 -6 -6 -6 -6 -6 -6 -6 -6 -5 -5 -5 -5 -4 ------- Run | Yrd Mat Min Mat Sto Rec Fac Low Low Zio Dee Pro Fac Was Fac Ext Cet Arc Hub Fac Upp Upp War Pro Peak Influence 1019 | 20 346 67 478 253 148 540 . . . . . 251 22 771 576 459 317 486 1019 . . . . Initial 324 | . 13 22 . 201 78 216 . . . . . 75 17 15 324 264 126 . 238 . . . . Average 190 | 6 137 25 204 185 22 281 . . . . . 112 17 374 377 378 65 336 639 . . . . Maximum Alert Level 3 | . 1 . 2 1 . 2 . . . . . 1 . 3 2 2 1 2 3 . . . . Low Security (%) 57 | 100 79 100 54 32 100 6 . . . . . 88 100 30 . . 84 18 . . . . . Level 1 30 | . 20 . 41 67 . 83 . . . . . 11 . 27 64 48 15 22 29 . . . . Level 2 9 | . . . 3 . . 9 . . . . . . . 37 35 50 . 58 19 . . . . Level 3 2 | . . . . . . . . . . . . . . 4 . . . . 51 . . . . Level 4 . | . . . . . . . . . . . . . . . . . . . . . . . . Level 5 . | . . . . . . . . . . . . . . . . . . . . . . . . High Security . | . . . . . . . . . . . . . . . . . . . . . . . . Max Security . | . . . . . . . . . . . . . . . . . . . . . . . . Squads Dispatched 33 | . 2 . 4 . . 4 . . . . 1 1 . 9 . . . 4 7 . . . 1 Investigation 9 | . 2 . 1 . . . . . . . . . . 2 . . . 3 1 . . . . Extermination 7 | . . . . . . 3 . . . . . 1 . 2 . . . . 1 . . . . Reinforcement 8 | . . . 3 . . 1 . . . . . . . 1 . . . 1 2 . . . . Assault 5 | . . . . . . . . . . . 1 . . 1 . . . . 2 . . . 1 Garrison 4 | . . . . . . . . . . . . . . 3 . . . . 1 . . . . Intercept . | . . . . . . . . . . . . . . . . . . . . . . . . Searches Triggered . | . . . . . . . . . . . . . . . . . . . . . . . . Construction Impeded 2 | . . . . . . 1 . . . . . . . 1 . . . . . . . . . Haulers Reinforced 1 | . . . . . . . . . . . . . . . . . . . 1 . . . . Active Scanning Responses . | . . . . . . . . . . . . . . . . . . . . . . . . Cargo Convoy Interrupts . | . . . . . . . . . . . . . . . . . . . . . . . . Stealth | -11 -10 -10 -9 -9 -9 -7 -7 -7 -7 -7 -6 -6 -6 -6 -6 -6 -6 -6 -5 -5 -5 -5 -4 --------- Run | Yrd Mat Min Mat Sto Rec Fac Low Low Zio Dee Pro Fac Was Fac Ext Cet Arc Hub Fac Upp Upp War Pro Distress Signals 12 | . 2 . 3 1 . 1 . . . . . . . . 2 2 . . . . . 1 . Communications Jammed . | . . . . . . . . . . . . . . . . . . . . . . . . Distress Signals . | . . . . . . . . . . . . . . . . . . . . . . . . Times Spotted 521 | . 28 5 50 10 5 28 20 2 110 9 24 7 5 35 17 9 32 38 33 4 14 16 20 Peak Tracking Total 17 | . 4 2 6 4 2 4 5 1 4 5 16 4 5 7 2 5 2 17 5 5 5 9 5 Tactical Retreats 21 | . 3 1 . 1 . . 1 . 1 . 5 . . 3 . . . 3 2 . . 1 . Traps | -11 -10 -10 -9 -9 -9 -7 -7 -7 -7 -7 -6 -6 -6 -6 -6 -6 -6 -6 -5 -5 -5 -5 -4 ------- Run | Yrd Mat Min Mat Sto Rec Fac Low Low Zio Dee Pro Fac Was Fac Ext Cet Arc Hub Fac Upp Upp War Pro Traps Triggered 11 | . 2 . . 1 . 2 . . . 2 . 1 . 1 1 . . . 1 . . . . Indirectly 2 | . . . . . . . . . . 2 . . . . . . . . . . . . . Trap Hack Attempts . | . . . . . . . . . . . . . . . . . . . . . . . . Triggered . | . . . . . . . . . . . . . . . . . . . . . . . . Disarmed . | . . . . . . . . . . . . . . . . . . . . . . . . Reprogrammed 3 | . 3 . . . . . . . . . . . . . . . . . . . . . . Reused 4 | . 3 . . . . . . . . 1 . . . . . . . . . . . . . Traps Extracted . | . . . . . . . . . . . . . . . . . . . . . . . . Installed 6 | . . . . . . . . . . 6 . . . . . . . . . . . . . Triggered 49 | . 3 . . . . . . 1 . . . . . . . . . . . . . 45 . Most Traps Carried 7 | . . . . . . . . 7 7 6 . . . . . . . . . . . . . Machines | -11 -10 -10 -9 -9 -9 -7 -7 -7 -7 -7 -6 -6 -6 -6 -6 -6 -6 -6 -5 -5 -5 -5 -4 ---------- Run | Yrd Mat Min Mat Sto Rec Fac Low Low Zio Dee Pro Fac Was Fac Ext Cet Arc Hub Fac Upp Upp War Pro Machines Disabled 54 | . 1 . 7 . 4 13 . 1 5 . . 1 . 7 7 2 4 1 . . . . 1 Max in Single Turn 4 | . 1 . 2 . 1 4 . 1 1 . . 1 . 2 1 2 1 1 . . . . 1 Garrison Access 2 | . . . . . . . . . . . . . . . . . . 1 1 . . . . Network Hub 4 | . . . . . . . . . . . . . . . . . . 4 . . . . . Machines Repaired . | . . . . . . . . . . . . . . . . . . . . . . . . Machines Dismantled 4 | . . . . . . . . . 4 . . . . . . . . . . . . . . Machines Sabotaged . | . . . . . . . . . . . . . . . . . . . . . . . . Overloaded Fab Kills . | . . . . . . . . . . . . . . . . . . . . . . . . Hacking | -11 -10 -10 -9 -9 -9 -7 -7 -7 -7 -7 -6 -6 -6 -6 -6 -6 -6 -6 -5 -5 -5 -5 -4 --------- Run | Yrd Mat Min Mat Sto Rec Fac Low Low Zio Dee Pro Fac Was Fac Ext Cet Arc Hub Fac Upp Upp War Pro Machines Accessed 83 | . 11 . 10 4 9 11 1 . . . . 6 . 8 13 1 . 5 4 . . . . Terminals 59 | . 8 . 7 4 4 8 . . . . . 3 . 6 11 1 . 4 3 . . . . Fabricators 4 | . . . . . . 1 . . . . . 2 . 1 . . . . . . . . . Repair Stations 1 | . 1 . . . . . . . . . . . . . . . . . . . . . . Recycling Units 10 | . 2 . 1 . 4 . . . . . . . . 1 2 . . . . . . . . Scanalyzers 4 | . . . 2 . . 1 . . . . . 1 . . . . . . . . . . . Garrison Access 3 | . . . . . . 1 . . . . . . . . . . . 1 1 . . . . Total Hacks 226 | . 37 . 37 15 22 20 1 . . . . 13 . 21 29 1 . 13 17 . . . . Successful 101 | . 22 . 22 10 15 3 1 . . . . . . 10 10 . . 4 4 . . . . Failed 124 | . 14 . 15 5 7 17 . . . . . 13 . 11 19 1 . 9 13 . . . . Catastrophic 30 | . 2 . 1 . . 3 . . . . . 4 . 3 6 1 . 2 8 . . . . Database Lockouts 1 | . 1 . . . . . . . . . . . . . . . . . . . . . . Manual 99 | . 18 . 17 10 14 4 . . . . . 8 . 10 4 1 . 6 7 . . . . Terminals 161 | . 29 . 19 15 11 13 . . . . . 8 . 15 26 1 . 11 13 . . . . Fabricators 10 | . . . . . . 2 . . . . . 4 . 4 . . . . . . . . . Repair Stations 5 | . 5 . . . . . . . . . . . . . . . . . . . . . . Recycling Units 19 | . 3 . 2 . 9 . . . . . . . . 2 3 . . . . . . . . Scanalyzers 19 | . . . 16 . . 2 . . . . . 1 . . . . . . . . . . . Garrison Access 9 | . . . . . . 3 . . . . . . . . . . . 2 4 . . . . Terminal Hacks 36 | . 9 . . 8 3 1 1 . . . . . . 3 8 . . 1 2 . . . . Part Schematic 2 | . 1 . . . . . . . . . . . . . 1 . . . . . . . . Robot Analysis 6 | . 2 . . 4 . . . . . . . . . . . . . . . . . . . Open Door 9 | . . . . 1 . . 1 . . . . . . 1 6 . . . . . . . . Level Access Points 2 | . . . . . . . . . . . . . . . . . . 1 1 . . . . Branch Access Points 4 | . 1 . . 1 . 1 . . . . . . . 1 . . . . . . . . . Terminal Index 3 | . . . . 1 . . . . . . . . . 1 . . . . 1 . . . . Unreport Threat 1 | . 1 . . . . . . . . . . . . . . . . . . . . . . Locate Traps 2 | . 1 . . . . . . . . . . . . . 1 . . . . . . . . Reprogram Traps 1 | . 1 . . . . . . . . . . . . . . . . . . . . . . Hauler Manifests 2 | . 1 . . 1 . . . . . . . . . . . . . . . . . . . Zone Layout 2 | . 1 . . . 1 . . . . . . . . . . . . . . . . . . Release Object 2 | . . . . . 2 . . . . . . . . . . . . . . . . . . Fabricator Hacks 3 | . . . . . . 1 . . . . . . . 2 . . . . . . . . . Load Schematic 1 | . . . . . . . . . . . . . . 1 . . . . . . . . . Build 2 | . . . . . . 1 . . . . . . . 1 . . . . . . . . . Repair Station Hacks 4 | . 4 . . . . . . . . . . . . . . . . . . . . . . Scan Component 2 | . 2 . . . . . . . . . . . . . . . . . . . . . . Repair 2 | . 2 . . . . . . . . . . . . . . . . . . . . . . Recycling Unit Hacks 2 | . . . . . 2 . . . . . . . . . . . . . . . . . . Retrieve Components 2 | . . . . . 2 . . . . . . . . . . . . . . . . . . Scanalyzer 16 | . . . 15 . . 1 . . . . . . . . . . . . . . . . . Insert Component 11 | . . . 10 . . 1 . . . . . . . . . . . . . . . . . Analyze 5 | . . . 5 . . . . . . . . . . . . . . . . . . . . Garrison Access Hacks 1 | . . . . . . . . . . . . . . . . . . 1 . . . . . Seal Access 1 | . . . . . . . . . . . . . . . . . . 1 . . . . . Unauthorized Hacks 39 | . 9 . 7 2 10 . . . . . . . . 5 2 . . 2 2 . . . . Terminals 31 | . 7 . 7 2 6 . . . . . . . . 4 2 . . 2 1 . . . . Track 1 | . . . . . . . . . . . . . . . . . . . 1 . . . . Botnet 8 | . 2 . 2 . 2 . . . . . . . . 1 1 . . . . . . . . Skim 20 | . 5 . 5 2 4 . . . . . . . . 3 1 . . . . . . . . Sabotage 2 | . . . . . . . . . . . . . . . . . . 2 . . . . . Fabricators 1 | . . . . . . . . . . . . . . 1 . . . . . . . . . Prioritize 1 | . . . . . . . . . . . . . . 1 . . . . . . . . . Repair Stations . | . . . . . . . . . . . . . . . . . . . . . . . . Recycling Units 6 | . 2 . . . 4 . . . . . . . . . . . . . . . . . . Tunnel 6 | . 2 . . . 4 . . . . . . . . . . . . . . . . . . Scanalyzers . | . . . . . . . . . . . . . . . . . . . . . . . . Garrison Access 1 | . . . . . . . . . . . . . . . . . . . 1 . . . . Jam 1 | . . . . . . . . . . . . . . . . . . . 1 . . . . Data Cores Recovered 3 | . . . . 1 . 1 . . . . . . . 1 . . . . . . . . . Used . | . . . . . . . . . . . . . . . . . . . . . . . . Hacking Detections 68 | . 8 . 9 3 5 11 . . . . . 6 . 7 10 1 . 4 4 . . . . Full Trace Events 4 | . 1 . 1 . . . . . . . . . . 2 . . . . . . . . . Feedback Events 1 | . 1 . . . . . . . . . . . . . . . . . . . . . . Corruption 1 | . 1 . . . . . . . . . . . . . . . . . . . . . . Feedback Blocked . | . . . . . . . . . . . . . . . . . . . . . . . . Robot Schematics Acquired . | . . . . . . . . . . . . . . . . . . . . . . . . Robots Built 1 | . . . . . . 1 . . . . . . . . . . . . . . . . . Authchips . | . . . . . . . . . . . . . . . . . . . . . . . . Time 134 | . . . . . . 134 . . . . . . . . . . . . . . . . . Total Robot Build Rating 4 | . . . . . . 4 . . . . . . . . . . . . . . . . . Part Schematics Acquired 7 | . 1 . 5 . . . . . . . . . . . 1 . . . . . . . . Parts Built 1 | . . . . . . . . . . . . . . 1 . . . . . . . . . Authchips . | . . . . . . . . . . . . . . . . . . . . . . . . Time 25 | . . . . . . . . . . . . . . 25 . . . . . . . . . Total Part Build Rating 1 | . . . . . . . . . . . . . . 1 . . . . . . . . . Parts Repaired 2 | . 2 . . . . . . . . . . . . . . . . . . . . . . Time 64 | . 64 . . . . . . . . . . . . . . . . . . . . . . Parts Recycled . | . . . . . . . . . . . . . . . . . . . . . . . . Recycled Matter . | . . . . . . . . . . . . . . . . . . . . . . . . Retrieved Matter . | . . . . . . . . . . . . . . . . . . . . . . . . Retrieved Components 10 | . . . . . 10 . . . . . . . . . . . . . . . . . . Parts Scanalyzed 5 | . . . 5 . . . . . . . . . . . . . . . . . . . . Part Schematics Acquired 5 | . . . 5 . . . . . . . . . . . . . . . . . . . . Parts Damaged . | . . . . . . . . . . . . . . . . . . . . . . . . Bothacking | -11 -10 -10 -9 -9 -9 -7 -7 -7 -7 -7 -6 -6 -6 -6 -6 -6 -6 -6 -5 -5 -5 -5 -4 ------------ Run | Yrd Mat Min Mat Sto Rec Fac Low Low Zio Dee Pro Fac Was Fac Ext Cet Arc Hub Fac Upp Upp War Pro Used RIF Installer . | . . . . . . . . . . . . . . . . . . . . . . . . Robots Hacked . | . . . . . . . . . . . . . . . . . . . . . . . . Non-combat . | . . . . . . . . . . . . . . . . . . . . . . . . Combat . | . . . . . . . . . . . . . . . . . . . . . . . . Robot Hacks Applied . | . . . . . . . . . . . . . . . . . . . . . . . . Relay Couplers Released 2 | . . . . . . . . . . . . . . . . . . 2 . . . . . Machine Destruction 2 | . . . . . . . . . . . . . . . . . . 2 . . . . . Fabnet Peak Effective % . | . . . . . . . . . . . . . . . . . . . . . . . . Robots Rewired 17 | . . . . . 7 . . 3 . . . . . . 7 . . . . . . . . Allies Hacked 2 | . . . . . . 1 . . . . . . . . 1 . . . . . . . . Hacks Repelled . | . . . . . . . . . . . . . . . . . . . . . . . . Allies | -11 -10 -10 -9 -9 -9 -7 -7 -7 -7 -7 -6 -6 -6 -6 -6 -6 -6 -6 -5 -5 -5 -5 -4 -------- Run | Yrd Mat Min Mat Sto Rec Fac Low Low Zio Dee Pro Fac Was Fac Ext Cet Arc Hub Fac Upp Upp War Pro Total Allies 48 | . . . . 10 7 1 . 3 . . . . . . 22 5 . . . . . . . Largest Group 18 | . . . . 10 10 1 . 3 . . . . . . 14 18 11 5 . . . . . Highest-Rated Group 965 | . . . . 88 101 40 . 93 . . . . . . 527 965 559 397 . . . . . Highest-Rated Ally 159 | . . . . 16 18 40 . 31 . . . . . . 159 159 96 96 . . . . . Total Orders 41 | . . . . 6 22 11 . . . . . . . . . . . 2 . . . . . STAY 14 | . . . . 2 8 2 . . . . . . . . . . . 2 . . . . . FOLLOW 4 | . . . . 2 2 . . . . . . . . . . . . . . . . . . EXPLORE 14 | . . . . 2 6 6 . . . . . . . . . . . . . . . . . RETURN 9 | . . . . . 6 3 . . . . . . . . . . . . . . . . . Ally Attacks 289 | . . . . 51 23 . . 7 . . . . . . 77 49 40 42 . . . . . Total Damage 6227 | . . . . 406 281 . . 77 . . . . . . 1401 1671 1062 1329 . . . . . Kills 40 | . . . . 10 4 . . . . . . . . . 6 5 4 11 . . . . . Allies Corrupted 3 | . . . . . . . . 1 . . . . . . . . . 2 . . . . . Allies Melted 2 | . . . . . . . . . . . . . . . 1 . . . . . . 1 . Intel | -11 -10 -10 -9 -9 -9 -7 -7 -7 -7 -7 -6 -6 -6 -6 -6 -6 -6 -6 -5 -5 -5 -5 -4 ------- Run | Yrd Mat Min Mat Sto Rec Fac Low Low Zio Dee Pro Fac Was Fac Ext Cet Arc Hub Fac Upp Upp War Pro Robot Analysis Total 6 | . 2 . . 4 . . . . . . . . . . . . . . . . . . . Derelict Logs Recovered 11 | . . 1 . . . . 1 3 1 . 1 . . . . . . . . 1 2 . 1 Drone Launches 14 | . . . . 2 6 6 . . . . . . . . . . . . . . . . . Drone Recoveries 12 | . . . . 2 6 4 . . . . . . . . . . . . . . . . . Exploration | -11 -10 -10 -9 -9 -9 -7 -7 -7 -7 -7 -6 -6 -6 -6 -6 -6 -6 -6 -5 -5 -5 -5 -4 ------------- Run | Yrd Mat Min Mat Sto Rec Fac Low Low Zio Dee Pro Fac Was Fac Ext Cet Arc Hub Fac Upp Upp War Pro Turns Passed 43300 | 118 1366 1637 3998 676 3519 1990 3251 2150 4048 2425 460 597 206 1061 1342 688 2292 380 1035 2201 2961 3280 1619 Spaces Moved 16190 | 71 612 512 1115 198 895 902 1471 1295 1986 1409 476 411 126 540 686 238 269 286 429 905 928 64 366 Core 37 | 8 . . . . . . . . . . . . . . . . . . . . . . 29 Treads 5356 | . 595 512 1115 198 594 54 . 1028 818 . . 13 106 323 . . . . . . . . . Legs 6576 | 63 17 . . . 301 300 . . 515 1280 . 281 . 1 686 238 269 286 105 905 928 64 337 Wheels . | . . . . . . . . . . . . . . . . . . . . . . . . Hover 2754 | . . . . . . 548 1193 . . 129 476 84 . . . . . . 324 . . . . Flight 1467 | . . . . . . . 278 267 653 . . 33 20 216 . . . . . . . . . Fastest Speed 35 | 50 120 240 240 320 265 99 156 156 72 86 46 46 75 75 151 151 120 120 35 238 238 304 50 Average Speed 194 | 112 168 308 319 320 291 186 191 157 133 114 77 111 138 123 151 187 201 120 165 238 282 305 396 Slowest Speed 766 | 120 240 320 320 320 480 277 234 234 234 194 92 285 151 151 151 275 275 120 296 238 304 370 766 Overloaded Moves . | . . . . . . . . . . . . . . . . . . . . . . . . Propulsion Burnouts . | . . . . . . . . . . . . . . . . . . . . . . . . Robots Hopped . | . . . . . . . . . . . . . . . . . . . . . . . . Cave-ins Triggered 3 | . . . . . . . . . . . . . . . . . . . . . . 3 . Exploration Rate (%) 64 | 5 86 99 87 38 99 36 99 99 83 72 68 17 97 17 85 76 86 50 10 87 92 10 42 Regions Visited 23 Branch Regions 16 Pre-discovered Areas 12 | . 2 . 2 . 4 . . 1 . . 1 . . . . . . . . . 1 . 1 Known Exits Taken 14 | . 1 1 1 1 1 1 1 1 . . 1 . . 1 . . . 1 . 1 1 1 . Unknown Exits Taken 7 | 1 . . . . . . . . 1 1 . . . . 1 1 1 . 1 . . . . Scrap Searched 18 | . . 1 . . . . 5 2 2 . 2 . . . . . . . . 1 3 . 2 Spaces Dug 150 | . . . . . 27 15 . . 1 33 3 16 . 15 6 . . 31 . . . 3 . Terrain Destroyed 907 | . . . 11 3 52 69 10 . 3 69 16 16 . 101 25 5 20 34 158 34 181 38 62 Melee 7 | . . . . . . 3 . . 1 . . . . . . . . . . . . 3 . Projectile 188 | . . . . . 15 16 . . 2 50 4 16 . 29 25 5 20 6 . . . . . AOE 712 | . . . 11 3 37 50 10 . . 19 12 . . 72 . . . 28 158 34 181 35 62 Terrain Rammed . | . . . . . . . . . . . . . . . . . . . . . . . . Walls Destroyed . | . . . . . . . . . . . . . . . . . . . . . . . . Machines Disabled . | . . . . . . . . . . . . . . . . . . . . . . . . Actions | -11 -10 -10 -9 -9 -9 -7 -7 -7 -7 -7 -6 -6 -6 -6 -6 -6 -6 -6 -5 -5 -5 -5 -4 --------- Run | Yrd Mat Min Mat Sto Rec Fac Low Low Zio Dee Pro Fac Was Fac Ext Cet Arc Hub Fac Upp Upp War Pro Total 26431 | 92 810 540 1364 234 1747 1136 1830 1399 3025 2136 559 515 145 812 915 459 1981 309 652 934 1218 3125 494 Wait 7581 | . 79 5 46 22 624 16 252 38 655 525 66 10 3 111 18 131 1646 1 54 1 218 3024 36 Move 16168 | 70 611 511 1114 197 894 901 1470 1294 1985 1408 475 411 125 539 685 237 268 285 428 904 927 63 366 Hop . | . . . . . . . . . . . . . . . . . . . . . . . . Pick Up 352 | 8 26 1 39 4 21 51 10 2 22 34 1 21 1 14 14 25 6 1 29 4 7 2 9 Fast Attach 60 | 6 5 . 3 . . 4 . . 5 6 . 1 . 4 5 2 1 2 11 1 2 . 2 Attach 93 | 1 1 2 12 . 4 6 . . 6 14 2 5 . 5 3 . 5 2 10 1 4 5 5 Detach 28 | . . . 1 . 3 . . . 3 5 1 1 . 1 1 . 1 1 8 . 1 . 1 Swap 273 | . 8 1 23 4 5 28 25 12 26 26 5 10 3 12 5 5 5 4 25 11 12 12 6 Drop 351 | . 12 1 30 3 26 51 9 2 25 42 2 17 2 10 13 26 10 2 25 2 9 3 29 Fire 1178 | 7 68 19 95 4 59 75 64 3 261 70 7 39 11 99 78 33 39 10 52 5 36 12 32 Melee 33 | . . . . . . 4 . 1 1 . . . . . . . . . 9 5 2 4 7 Ram 1 | . . . . . . . . . . . . . . . . . . . 1 . . . . Kick 4 | . . . . . . . . . . . . . . . 3 . . 1 . . . . . Crush 19 | . . . 1 . 1 . . . . . . . . 17 . . . . . . . . . Escape Stasis . | . . . . . . . . . . . . . . . . . . . . . . . . Rewire 248 | . . . . . 110 . . 47 . . . . . . 90 . . . . . . . 1 Trap 6 | . . . . . . . . . . 6 . . . . . . . . . . . . . Miscellaneous 36 | . . . . . . . . . 36 . . . . . . . . . . . . . . Route ------- -11/Scrapyard -10/Materials (discovered 6 exits: *Mat x3 / *Min x2 / Sub) -10/Mines (discovered 3 exits: *Mat x2 / *Sub) -9/Materials (discovered 7 exits: *Mat x3 / *Min x2 / *Sto x2) -9/Storage -9/Recycling -7/Factory (discovered 3 exits: *Fac / *Low x2) -7/Lower Caves -7/Lower Caves (discovered 2 exits: *Fac / *Zio) -7/Zion (discovered 2 exits: [*Dee] / [*Pro]) -7/Deep Caves -6/Proximity Caves -6/Factory (discovered 2 exits: *Fac / Low) -6/Waste -6/Factory (discovered 4 exits: *Low x2 / *Ext x2) -6/Extension (discovered 2 exits: *Fac / *Cet) -6/Cetus (discovered 2 exits: *Fac / [*Arc]) -6/Archives (discovered 3 exits: *Fac / *Hub x2) -6/Hub_04(d) (discovered 4 exits: *Fac x4) -5/Factory (discovered 5 exits: Fac x4 / [*Upp]) -5/Upper Caves -5/Upper Caves (discovered 2 exits: *Fac / *War) -5/Warlord -4/Proximity Caves History --------- Turn | Location | Event 10 | -11/Scrapyard | Discovered new exit (range 15) 119 | -11/Scrapyard | Entered Materials 284 | -10/Materials | Discovered new exit (range 6) 314 | -10/Materials | Build established: Mutant 340 | -10/Materials | Discovered new exit (range 3) 546 | -10/Materials | Central database locked down 566 | -10/Materials | Discovered new exit (range 10) 628 | -10/Materials | Identified exit to Subcaves 628 | -10/Materials | Identified exit to Mines 700 | -10/Materials | Learned 4 Recycling zone layouts 763 | -10/Materials | Identified exit to Materials 818 | -10/Materials | Learned location of 2 exits from Materials 981 | -10/Materials | Learned 4 Subcaves zone layouts 1324 | -10/Materials | Repaired Imp. Treads 1357 | -10/Materials | Repaired Imp. Treads 1485 | -10/Materials | Entered Mines 2392 | -10/Mines | Discovered exit to Subcaves (range 12) 3122 | -10/Mines | Entered Materials 3122 | -9/Materials | Evolved 2 slots: Utility x2 3123 | -9/Materials | Identified exit to Materials 3124 | -9/Materials | Identified exit to Mines 3124 | -9/Materials | Identified exit to Storage 3694 | -9/Materials | Lost 4 parts (1p2u1w) 4219 | -9/Materials | Build established: Scavenger-Mutant 4807 | -9/Materials | Discovered exit to Materials (range 4) 5267 | -9/Materials | Build established: Mutant 5967 | -9/Materials | Core integrity fell below 50% 6263 | -9/Materials | Discovered exit to Storage (range 10) 6757 | -9/Materials | Discovered exit to Mines (range 11) 6835 | -9/Materials | Learned location of Zion (-7) 6994 | -9/Materials | Learned Storage security intel 7120 | -9/Materials | Entered Storage 7454 | -9/Storage | Identified exit to Recycling 7513 | -9/Storage | Assisted by bots powering up and referring to "LRC-V3" 7574 | -9/Storage | Lost 6 allies 7674 | -9/Storage | Used back door to open Recycling access 7796 | -9/Storage | Entered Recycling 7796 | -9/Recycling | Accompanied by 3 allies 7797 | -9/Recycling | Identified exit to Scraptown 7797 | -9/Recycling | Identified exit to Factory 8155 | -9/Recycling | Build established: Commander-Mutant 8942 | -9/Recycling | Scanned before Scraplab entrance 8987 | -9/Recycling | Entered Scraplab 9027 | -9/Recycling | Angered Scraplab inhabitants 9030 | -9/Recycling | Found Prototype Device 9034 | -9/Recycling | Core integrity fell below 20% 9069 | -9/Recycling | Lost 7 allies 9073 | -9/Recycling | Identified Scrap Engine 9530 | -9/Recycling | Build established: Construct 11315 | -9/Recycling | Entered Factory 11315 | -7/Factory | Evolved 4 slots: Propulsion x2, Utility x1, Weapon x1 12238 | -7/Factory | Discovered new exit (range 9) 12274 | -7/Factory | Identified exit to Factory 12310 | -7/Factory | Identified exit to Lower Caves 12342 | -7/Factory | Fabricated I-36 Angel? 13305 | -7/Factory | Entered Lower Caves 13733 | -7/Lower Caves | Learned location of 1 exit from Factory 14525 | -7/Lower Caves | Attracted the attention of an 0b10 outpost 15319 | -7/Lower Caves | Attracted the attention of an 0b10 checkpoint 16194 | -7/Lower Caves | Discovered new exit (range 15) 16237 | -7/Lower Caves | Identified exit to Lower Caves 16556 | -7/Lower Caves | Entered another Lower Caves area 16581 | -7/Lower Caves | Learned 4 Factory zone layouts 16626 | -7/Lower Caves | Encountered a Warlord checkpoint 16642 | -7/Lower Caves | Discovered exit to Factory (range 2) 16897 | -7/Lower Caves | Attacked by a delusional Derelict stockpiling Unaware 17060 | -7/Lower Caves | Lost 3 allies 17399 | -7/Lower Caves | Learned Factory emergency access door positions 18004 | -7/Lower Caves | Discovered new exit (range 9) 18061 | -7/Lower Caves | Identified exit to Zion 18106 | -7/Lower Caves | Build established: Trapper-Construct 18706 | -7/Lower Caves | Entered Zion 18866 | -7/Zion | Received a visual enhancement algorithm 18895 | -7/Zion | Discovered new exit (range 11) 19109 | -7/Zion | Attacked by Zionites 19109 | -7/Zion | Spotted ZZ-W8N(B) 19109 | -7/Zion | Spotted ES-UF7(B) 19113 | -7/Zion | Destroyed ZZ-W8N(B) 19123 | -7/Zion | Destroyed ES-UF7(B) 20036 | -7/Zion | Core integrity fell below 50% 20077 | -7/Zion | Found Prototype Device 20078 | -7/Zion | Identified Phasing AFG 20254 | -7/Zion | Discovered new exit (range 5) 20257 | -7/Zion | Saw the warning signs outside the Deep Caves entrance 20709 | -7/Zion | Build established: Construct 21183 | -7/Zion | Learned Factory terminal intel 22754 | -7/Zion | Entered Deep Caves 22954 | -7/Deep Caves | Attacked by Z-Imprinter 22997 | -7/Deep Caves | Core integrity fell below 20% 23006 | -7/Deep Caves | Destroyed Z-Imprinter 23017 | -7/Deep Caves | Lost 3 parts (2u1w) 23039 | -7/Deep Caves | Found Prototype Device 23039 | -7/Deep Caves | Identified Zio. Metafield Generator 23042 | -7/Deep Caves | Found Prototype Protection 23042 | -7/Deep Caves | Identified Zio. Weapon Casing 23429 | -7/Deep Caves | Found Zio. Weapon Casing 23594 | -7/Deep Caves | Z-Facility disabled 23669 | -7/Deep Caves | Found Prototype Protection 23669 | -7/Deep Caves | Identified Zio. Heavy Carapace 23690 | -7/Deep Caves | Found Zio. Heavy Carapace 23982 | -7/Deep Caves | Discovered new exit (range 6) 24174 | -7/Deep Caves | Found Prototype Device 24175 | -7/Deep Caves | Identified Cloak of Protection 24454 | -7/Deep Caves | Found Zio. Weapon Casing 24497 | -7/Deep Caves | Found Zio. Weapon Casing 25179 | -7/Deep Caves | Entered Proximity Caves 25424 | -6/Proximity Caves | Attracted the attention of an 0b10 outpost 25633 | -6/Proximity Caves | Discovered exit to Factory (range 15) 25639 | -6/Proximity Caves | Entered Factory 25639 | -6/Factory | Evolved 2 slots: Propulsion x2 25640 | -6/Factory | Identified exit to Lower Caves 25643 | -6/Factory | Loaded intel: 28 terminal locations 25648 | -6/Factory | Discovered new exit (range 9) 25684 | -6/Factory | Found Prototype Launcher 25685 | -6/Factory | Found Prototype Launcher 25687 | -6/Factory | Found Prototype Launcher 25822 | -6/Factory | Found Launcher Loader 25824 | -6/Factory | Found Launcher Loader 26236 | -6/Factory | Sucked down chute 26236 | -6/Factory | Entered Waste 26236 | -6/Waste | Identified Rocket Array (x3) 26289 | -6/Waste | Spotted C-40 Crusher 26290 | -6/Waste | Spotted C-40 Crusher 26311 | -6/Waste | Crushed by Compactor (1 part destroyed) 26349 | -6/Waste | Spotted C-40 Crusher 26376 | -6/Waste | Spotted C-40 Crusher 26381 | -6/Waste | Spotted C-40 Crusher 26414 | -6/Waste | Discovered new exit (range 22) 26426 | -6/Waste | Spotted C-40 Crusher 26442 | -6/Waste | Entered Factory 26607 | -6/Factory | Spotted B-75 Beast 26682 | -6/Factory | Discovered exit to Lower Caves (range 10) 26824 | -6/Factory | Identified exit to Extension 26926 | -6/Factory | Fabricated Cargo Storage Unit (x1) 26950 | -6/Factory | Garrison activated, responded to threat 27142 | -6/Factory | First assault squad dispatched 27503 | -6/Factory | Entered Extension 27645 | -6/Extension | Rescued a captive Derelict 27645 | -6/Extension | Rescued a captive Derelict 27879 | -6/Extension | Rescued a captive Derelict 27880 | -6/Extension | Rescued a captive Derelict 28034 | -6/Extension | Rescued a captive Derelict 28035 | -6/Extension | Rescued a captive Derelict 28078 | -6/Extension | Rescued a captive Derelict 28088 | -6/Extension | Rescued a captive Derelict 28236 | -6/Extension | Spotted B-75 Beast 28252 | -6/Extension | Spotted B-75 Beast 28258 | -6/Extension | Allies destroyed B-75 Beast 28267 | -6/Extension | Destroyed B-75 Beast 28296 | -6/Extension | Lost 3 allies 28328 | -6/Extension | Disrupted transfer network 28368 | -6/Extension | Rescued a captive Derelict 28376 | -6/Extension | Rescued a captive Derelict 28388 | -6/Extension | Rescued A7 28444 | -6/Extension | Rescued a captive Derelict 28637 | -6/Extension | Lost 3 allies 28699 | -6/Extension | Rescued a captive Derelict 28739 | -6/Extension | Rescued a captive Derelict 28749 | -6/Extension | Rescued a captive Derelict 28788 | -6/Extension | Discovered new exit (range 10) 28789 | -6/Extension | Discovered new exit (range 6) 28845 | -6/Extension | Entered Cetus 28845 | -6/Cetus | Accompanied by 14 allies (A7) 28850 | -6/Cetus | Acquired a Cetus Manufacturing Module code from A7 28868 | -6/Cetus | Spotted Cetus Guard 28868 | -6/Cetus | Spotted Cetus Guard 28870 | -6/Cetus | Spotted Cetus Guard 28871 | -6/Cetus | Spotted Cetus Guard 28875 | -6/Cetus | Destroyed Cetus Guard 28883 | -6/Cetus | Allies destroyed Cetus Guard 28884 | -6/Cetus | Destroyed Cetus Guard 28896 | -6/Cetus | Destroyed Cetus Guard 28998 | -6/Cetus | Started Cetus Manufacturing Module 29023 | -6/Cetus | Manufactured an Enhanced Grunt 29030 | -6/Cetus | Escorted A7 to Cetus Mainframe 29048 | -6/Cetus | Manufactured an Enhanced Grunt 29073 | -6/Cetus | Manufactured an Enhanced Grunt 29098 | -6/Cetus | Manufactured an Enhanced Grunt 29123 | -6/Cetus | Manufactured an Enhanced Grunt 29186 | -6/Cetus | Discovered new exit (range 16) 29240 | -6/Cetus | Spotted Cetus Guard 29240 | -6/Cetus | Spotted Cetus Guard 29243 | -6/Cetus | Spotted Cetus Guard 29243 | -6/Cetus | Spotted Cetus Guard 29251 | -6/Cetus | Destroyed Cetus Guard 29256 | -6/Cetus | Destroyed Cetus Guard 29266 | -6/Cetus | Allies destroyed Cetus Guard 29273 | -6/Cetus | Allies destroyed Cetus Guard 29302 | -6/Cetus | Lost 6 allies 29317 | -6/Cetus | Murdered A7 29322 | -6/Cetus | Extracted ID and sensor layout for unrecognized location from A7's data core 29323 | -6/Cetus | Build established: Commander-Construct 29333 | -6/Cetus | Found Prototype Protection 29333 | -6/Cetus | Identified Med. Regenerative Plating 29395 | -6/Cetus | Discovered new exit (range 15) 29420 | -6/Cetus | Met Revision 17 29533 | -6/Cetus | Entered Archives 29533 | -6/Archives | Accompanied by 11 allies 29629 | -6/Archives | Lost 6 allies 29633 | -6/Archives | Discovered new exit (range 15) 29690 | -6/Archives | Discovered new exit (range 16) 29854 | -6/Archives | Build established: Hauler-Construct 29947 | -6/Archives | Discovered new exit (range 13) 30540 | -6/Archives | Build established: Commander-Construct 31825 | -6/Archives | Entered Hub_04(d) 31825 | -6/Hub_04(d) | Accompanied by 5 allies 31867 | -6/Hub_04(d) | Identified exit to Factory 31964 | -6/Hub_04(d) | Network Hub disabled 32034 | -6/Hub_04(d) | Spotted Lightning 32091 | -6/Hub_04(d) | Network Hub disabled 32125 | -6/Hub_04(d) | Build established: Hacker-Construct 32130 | -6/Hub_04(d) | Spotted Lightning 32130 | -6/Hub_04(d) | Spotted Lightning 32131 | -6/Hub_04(d) | Spotted Lightning 32132 | -6/Hub_04(d) | Spotted Lightning 32132 | -6/Hub_04(d) | Spotted Lightning 32132 | -6/Hub_04(d) | Spotted Lightning 32133 | -6/Hub_04(d) | Network Hub disabled 32133 | -6/Hub_04(d) | Network Hub disabled 32141 | -6/Hub_04(d) | Core integrity fell below 50% 32141 | -6/Hub_04(d) | System corruption reached 10% 32205 | -6/Hub_04(d) | Entered Factory 32205 | -5/Factory | Evolved 2 slots: Power x1, Utility x1 32218 | -5/Factory | Lost 5 parts (1p1u3w) 32474 | -5/Factory | Identified exit to Factory 32496 | -5/Factory | Discovered new exit (range 10) 32629 | -5/Factory | Garrison activated, responded to threat 32772 | -5/Factory | Found Prototype Launcher 32772 | -5/Factory | Identified Mni. Smartbomb Launcher 32783 | -5/Factory | Found Mni. Smartbomb Launcher 32786 | -5/Factory | Found Mni. Smartbomb Launcher 32789 | -5/Factory | Found Mni. Smartbomb Launcher 32792 | -5/Factory | Found Mni. Smartbomb Launcher 32795 | -5/Factory | Found Mni. Smartbomb Launcher 32801 | -5/Factory | Found Mni. Smartbomb Launcher 32921 | -5/Factory | System corruption reached 10% 33025 | -5/Factory | Build established: Hauler-Construct 33105 | -5/Factory | First assault squad dispatched 33240 | -5/Factory | Entered Upper Caves 34079 | -5/Upper Caves | Discovered new exit (range 13) 34117 | -5/Upper Caves | Identified exit to Upper Caves 34951 | -5/Upper Caves | Learned location of 1 exit from Factory 35441 | -5/Upper Caves | Entered another Upper Caves area 35458 | -5/Upper Caves | Learned Factory stockpile data 35468 | -5/Upper Caves | Discovered exit to Factory (range 9) 36024 | -5/Upper Caves | Attracted the attention of an 0b10 checkpoint 36759 | -5/Upper Caves | Learned location of Armory (-4) 37573 | -5/Upper Caves | Discovered new exit (range 15) 37612 | -5/Upper Caves | Identified exit to Warlord 38402 | -5/Upper Caves | Entered Warlord 38499 | -5/Warlord | Discovered new exit (range 8) 39402 | -5/Warlord | Warlord's base attacked by MAIN.C 39752 | -5/Warlord | Warlord forces counterattacked 40077 | -5/Warlord | Warlord base infiltrated, sounded retreat 41393 | -5/Warlord | Crushed by falling debris 41420 | -5/Warlord | Crushed by falling debris 41565 | -5/Warlord | Crushed by falling debris 41573 | -5/Warlord | Spotted Striker 41594 | -5/Warlord | Destroyed Striker 41605 | -5/Warlord | Identified exit to Proximity Caves 41622 | -5/Warlord | Lost 5 parts (2p3w) 41637 | -5/Warlord | Spotted Executioner 41648 | -5/Warlord | Core integrity fell below 50% 41682 | -5/Warlord | Entered Proximity Caves 41702 | -4/Proximity Caves | Lost 3 parts (2n1w) 41925 | -4/Proximity Caves | Build established: Mutant 41928 | -4/Proximity Caves | Spotted B-86 Titan 42049 | -4/Proximity Caves | Spotter reported a threat 42454 | -4/Proximity Caves | Core integrity fell below 20% 42564 | -4/Proximity Caves | Spotter reported a threat 43225 | -4/Proximity Caves | Attracted the attention of an 0b10 outpost 43285 | -4/Proximity Caves | Lost 4 parts (1n2u1w) 43301 | -4/Proximity Caves | Destroyed by G-73 Enforcer with Phase Gun Last Messages --------------- 43278_ Dropped Hacking Suite. 43278_ Dropped Beamcaster. 43279_ Dropped Rocket Array. 43279_ Dropped Mni. Smartbomb Launcher. 43280_ Dropped Adv. System Shield. 43281_ Dropped Structural Scanner. 43281_ Dropped Huge Storage Unit. 43282_ Dropped Med. Regenerative Plating. 43282_ Dropped Adv. System Shield. 43284_ Acquired Huge Storage Unit. 43286_ The unstable cave ceiling collapses. 43287_ Scrap Engine consumes Proton Cannon. 43287_ The unstable cave ceiling collapses. 43297_ Attempting to rewire B-60 Warrior. 43300_ C-30 ARC bursts open, deploying its payload. 43300_ G-73 Enforcer unfolds itself. 43300_ L-61 Swordsman unfolds itself. 43300_ G-67 Veteran unfolds itself. 43301_ The unstable cave ceiling collapses. Map ----- +----------------------------------------------------+ | ?????????????????????????????????????????????????? | | ?????????????????????????????????????????????????? | | ?????????????????????????????????????????????????? | | ?????????????????????????????????????????????????? | | ?????????????????????????????????????????????????? | | ?????????????????????????????????????????????????? | | ?????????????????????????????????????????????????? | | ?????????????????????????????????????????????????? | | ?????????????????????????????????????????????????? | | ?????????????????????????????????????????????????? | | ?????????????????????????????????????????????????? | | ?????????????????????????????????????????????????? | | ?????????????????????????????????????????????????? | | ?????????????????????????????????????????????????? | | ?????????????????????????????????????????????????? | | ?????????????????????????????????????????????????? | | ?????????????????????????????????????????????????? | | ?????????????????????????????????????????????????? | | ?????????????????????????????????????????????????? | | ?????????????????????????????????????????????????? | | ?????????????????????????????????????????????????? | | ?????????????????????????????????????????????????? | | ???????????????????????######?####???????????????? | | ??????????????????????############???????????????? | | ??????????????????????# ##??????????????? | | ??????????????????????# #@# # ##??????????????? | | ??????????????????????# " ##?????????????? | | ??????????????????????# " # ##?????????????? | | ??????????????????????# #" # ##?????????????? | | ?????????????????????## #lg #####??????????? | | ????????????????? #### "b% g !#####?????????? | | ?????????????????? ### #"" ]!! " ###???????? | | ?????????????????? ## # !!/!]; #???????? | | ?????????????????? !!/]!;####???????? | | ???????????????????##### ]! ![##??????????? | | ??????????? ?????????### !! ;"#??????????? | | ????????? #????????#### # #?????????? | | ?????????# ##???????### "# #?????????? | | ?????????# #????##### #### ###?????????? | | ?????????# ???### ## ##### ###??????????? | | ??????????# ???### # # #######??????????? | | ???????????# ##### #####???????????? | | ???????????# ### # ###????????????? | | ?????????### ### ###????????????? | | ?????????# ## ###???????????? | | ?????????# ###??????????? | | ??#####?## ##??????????? | | ### ### ##??????????? | | # ### #### ##??????????? | | #?## ###### ## ##??????????? | +----------------------------------------------------+ Best States ------------- Heat Dissipation 71 Coolant Potential 65 Energy Generation 31 Energy Capacity 936 Matter Stores 300 Matter Capacity 300 Sight Range 22 Robot Scan Range 15 Terrain Scan Range 16 Terrain Scan Density 10 Cloak Strength 5 Armor Coverage 1200 Resistance: KI 25 Resistance: TH 10 Resistance: EM 25 Propulsion Shielding 90 Evasion (%) 58 Targeting Accuracy 8 Recoil Reduction 6 Offensive Hacking 24 Defensive Hacking 12 Trap Extractor Capacity 6 Item Schematics ----------------- Cargo Storage Unit | -10/Materials | Hacked Huge Storage Unit | -9/Materials | Scanalyzed Hcp. Storage Unit | -9/Materials | Scanalyzed Imp. Treads | -9/Materials | Scanalyzed Hrd. Medium Armor Plating | -9/Materials | Scanalyzed Lrg. Storage Unit | -9/Materials | Scanalyzed Lrn. Terrain Scanner | -6/Extension | Hacked Robot Schematics ------------------ None Fabricated ------------ I-36 Angel | x1 | -7/Factory | Preloaded Cargo Storage Unit | x1 | -6/Factory Alien Tech Used ----------------- None Achievements -------------- Monster Challenges ------------ None Game ------ Seed AssemblyDynamicChainsword Manual? 0 Play Time 05:43:59 Cumulative 523.0 hours Start 2024.09.05 @ 23:01:58 End 2024.09.06 @ 04:46:59 Sessions 1 Manual Loads 0 Difficulty Rogue Special Mode None Game No. 120 Rogue 120 Adventurer 0 Explorer 0 Win Type - Total 30 Types 10/3/7/1/1/1/5/1/1 Lore% 59 Gallery% 83 Achievement% 77 Wizard Run 0 Options --------- Layout 1 ASCII 0 Keyboard 0 Movement Mouse Keybinds 0 Fullscreen 1 Font 24/Smallcaps Map View 50x35 Zoom Use 2% Tactical HUD 1 Map Filters NONE Filters NONE Steam 1 RUN: 71d4a2c8-b202-4fa0-b7b0-11bb6ca27a84